[Event "Chinese Championship-B Men 2024"]
[Site "Liaocheng"]
[Date "2024.04.24"]
[Round "8.8"]
[White "Jin, Hongtao"]
[Black "Gong, Changda"]
[Result "1/2-1/2"]
[WhiteElo "1903"]
[BlackElo "2170"]
[PlyCount "88"]
[EventDate "2024.04.24"]
[EventType "swiss"]
[EventCountry "CHN"]
[TimeControl "5400+30"]

1. d4 {[%emt 0:00:06]} d5 {[%emt 0:01:43]} 2. c4 {[%emt 0:00:14]} c6 {[%emt 0:00:08]} 3. cxd5 {[%emt 0:00:08]} cxd5 {[%emt 0:00:11]} 4. Bf4 {[%emt 0:00:09]} Nf6 {[%emt 0:00:43]} 5. e3 {[%emt 0:00:21]} Nc6 {[%emt 0:00:07]} 6. Bd3 {[%emt 0:00:05]} Bg4 {[%emt 0:02:19]} 7. f3 {[%emt 0:00:23]} Bh5 {[%emt 0:00:13]} 8. Qb3 {[%emt 0:00:19]} Qd7 {[%emt 0:01:52]} 9. Nc3 {[%emt 0:00:38]} e6 {[%emt 0:00:32]} 10. Rc1 {[%emt 0:00:32]} Bg6 {[%emt 0:01:54]} 11. Bb5 {[%emt 0:03:41]} Rc8 {[%emt 0:04:58]} 12. Na4 {[%emt 0:03:53]} Nh5 {[%emt 0:13:50]} 13. Bg5 {[%emt 0:04:40]} Bd6 {[%emt 0:02:54]} 14. Nc5 {[%emt 0:02:35]} Bxc5 {[%emt 0:00:48]} 15. Rxc5 {[%emt 0:00:11]} a6 {[%emt 0:07:37]} 16. Bxc6 {[%emt 0:02:18]} Rxc6 {[%emt 0:00:09]} 17. Rxc6 {[%emt 0:00:28]} Qxc6 {[%emt 0:00:03]} 18. Ne2 {[%emt 0:01:05]} O-O {[%emt 0:06:30]} 19. Kd2 {[%emt 0:02:03]} Rc8 {[%emt 0:03:28]} 20. Rc1 {[%emt 0:00:12]} Qd7 {[%emt 0:00:19]} 21. Rxc8+ {[%emt 0:02:16]} Qxc8 {[%emt 0:00:03]} 22. Qc3 {[%emt 0:00:19]} Qd7 {[%emt 0:02:24]} 23. g4 {[%emt 0:01:28]} Nf6 {[%emt 0:00:26]} 24. Bxf6 {[%emt 0:02:02]} gxf6 {[%emt 0:00:04]} 25. b3 {[%emt 0:03:09]} f5 {[%emt 0:08:54]} 26. Nf4 {[%emt 0:03:12]} fxg4 {[%emt 0:00:52]} 27. fxg4 {[%emt 0:00:45]} f6 {[%emt 0:05:25]} 28. Nxg6 {[%emt 0:02:55]} hxg6 {[%emt 0:00:03]} 29. h4 {[%emt 0:00:19]} g5 {[%emt 0:03:11]} 30. hxg5 {[%emt 0:00:55]} fxg5 {[%emt 0:00:02]} 31. Qc5 {[%emt 0:01:24]} Kf7 {[%emt 0:04:32]} 32. Kc3 {[%emt 0:02:12]} Qd8 {[%emt 0:01:23]} 33. a4 {[%emt 0:01:08]} Ke8 {[%emt 0:00:31]} 34. Kd3 {[%emt 0:06:58]} Kd7 {[%emt 0:01:53]} 35. Ke2 {[%emt 0:01:51]} Qb8 {[%emt 0:08:22]} 36. Qb6 {[%emt 0:01:14]} Qc7 {[%emt 0:01:16]} 37. Qxc7+ {[%emt 0:01:19]} Kxc7 {[%emt 0:00:09]} 38. b4 {[%emt 0:00:09]} b5 {[%emt 0:00:03]} 39. a5 {[%emt 0:01:39]} Kd6 {[%emt 0:00:09]} 40. Kd3 {[%emt 0:00:29]} e5 {[%emt 0:01:48]} 41. Kc3 {[%emt 0:00:23]} Ke6 {[%emt 0:00:12]} 42. Kd3 {[%emt 0:00:30]} Kd6 {[%emt 0:00:08]} 43. Kc3 {[%emt 0:00:55]} Ke6 {[%emt 0:00:11]} 44. Kd3 {[%emt 0:00:28]} Kd6 {[%emt 0:00:19]} 1/2-1/2

[Event "Chinese Championship-B Men 2024"]
[Site "Liaocheng"]
[Date "2024.04.24"]
[Round "8.9"]
[White "Yao, Yuhang"]
[Black "Zhu, Yilun"]
[Result "0-1"]
[WhiteElo "1887"]
[BlackElo "2125"]
[PlyCount "58"]
[EventDate "2024.04.24"]
[EventType "swiss"]
[EventCountry "CHN"]
[TimeControl "5400+30"]

1. e4 {[%emt 0:00:01]} c5 {[%emt 0:00:04]} 2. Nf3 {[%emt 0:00:02]} Nc6 {[%emt 0:00:05]} 3. d4 {[%emt 0:00:02]} cxd4 {[%emt 0:00:05]} 4. Nxd4 {[%emt 0:00:03]} Qb6 {[%emt 0:00:05]} 5. Nb3 {[%emt 0:00:53]} g6 {[%emt 0:00:04]} 6. Be3 {[%emt 0:00:36]} Qb4+ {[%emt 0:00:08]} 7. N1d2 {[%emt 0:00:42]} Bg7 {[%emt 0:00:04]} 8. c3 {[%emt 0:00:46]} Qd6 {[%emt 0:00:05]} 9. Be2 {[%emt 0:02:29]} Nf6 {[%emt 0:00:07]} 10. O-O {[%emt 0:00:55]} O-O {[%emt 0:00:06]} 11. Qc2 {[%emt 0:01:10]} Qc7 {[%emt 0:00:09]} 12. c4 {[%emt 0:04:47]} d6 {[%emt 0:00:06]} 13. h3 {[%emt 0:00:40]} b6 {[%emt 0:00:24]} 14. Rac1 {[%emt 0:02:06]} Bb7 {[%emt 0:00:20]} 15. f4 {[%emt 0:01:20]} Nd7 {[%emt 0:00:29]} 16. a3 {[%emt 0:05:18]} Nc5 {[%emt 0:00:17]} 17. Nf3 {[%emt 0:01:56]} a5 {[%emt 0:07:32]} 18. Nxc5 {[%emt 0:06:07]} bxc5 {[%emt 0:00:50]} 19. e5 {[%emt 0:05:51]} dxe5 {[%emt 0:01:08]} 20. Bxc5 {[%emt 0:00:59]} e4 {[%emt 0:13:21]} 21. Nd2 {[%emt 0:09:28]} Bd4+ {[%emt 0:10:30]} 22. Bxd4 {[%emt 0:00:06]} Nxd4 {[%emt 0:00:02]} 23. Qd1 {[%emt 0:00:07]} Rfd8 {[%emt 0:06:06]} 24. Qe1 {[%emt 0:04:16]} Qd6 {[%emt 0:01:52]} 25. Bd1 {[%emt 0:11:14]} Nf5 {[%emt 0:03:59]} 26. Nb3 {[%emt 0:08:41]} a4 {[%emt 0:01:30]} 27. c5 {[%emt 0:00:30]} Qd5 {[%emt 0:01:37]} 28. c6 {[%emt 0:00:31]} Ba6 {[%emt 0:01:43]} 29. c7 {[%emt 0:00:27]} Rdc8 {[%emt 0:00:17]} 0-1

[Event "Chinese Championship-B Men 2024"]
[Site "Liaocheng"]
[Date "2024.04.24"]
[Round "8.10"]
[White "Pan, Shi Tian Yu"]
[Black "Xu, Wei"]
[Result "1-0"]
[WhiteElo "2166"]
[BlackElo "2047"]
[PlyCount "85"]
[EventDate "2024.04.24"]
[EventType "swiss"]
[EventCountry "CHN"]
[TimeControl "5400+30"]

1. d4 {[%emt 0:00:03]} Nf6 {[%emt 0:01:54]} 2. c4 {[%emt 0:00:12]} e6 {[%emt 0:00:12]} 3. g3 {[%emt 0:00:06]} d5 {[%emt 0:01:58]} 4. Bg2 {[%emt 0:00:09]} Be7 {[%emt 0:00:03]} 5. Nf3 {[%emt 0:00:07]} O-O {[%emt 0:00:03]} 6. O-O {[%emt 0:00:10]} a5 {[%emt 0:02:38]} 7. Qc2 {[%emt 0:01:34]} c6 {[%emt 0:00:45]} 8. Nbd2 {[%emt 0:00:53]} Nbd7 {[%emt 0:05:27]} 9. e4 {[%emt 0:01:01]} dxe4 {[%emt 0:00:17]} 10. Nxe4 {[%emt 0:00:05]} a4 {[%emt 0:08:01]} 11. Bf4 {[%emt 0:02:54]} Nxe4 {[%emt 0:01:39]} 12. Qxe4 {[%emt 0:00:06]} Qb6 {[%emt 0:00:40]} 13. Qc2 {[%emt 0:00:15]} c5 {[%emt 0:01:32]} 14. d5 {[%emt 0:02:44]} exd5 {[%emt 0:11:08]} 15. cxd5 {[%emt 0:00:05]} Bd6 {[%emt 0:01:01]} 16. Bxd6 {[%emt 0:02:22]} Qxd6 {[%emt 0:00:04]} 17. Nd2 {[%emt 0:06:26]} b6 {[%emt 0:01:29]} 18. Nc4 {[%emt 0:02:03]} Qf6 {[%emt 0:02:14]} 19. d6 {[%emt 0:02:24]} Ra7 {[%emt 0:03:55]} 20. Rad1 {[%emt 0:04:38]} Ba6 {[%emt 0:02:36]} 21. Rfe1 {[%emt 0:01:10]} h6 {[%emt 0:16:20]} 22. Ne3 {[%emt 0:00:56]} Ne5 {[%emt 0:02:36]} 23. Qc3 {[%emt 0:33:26]} Nd3 {[%emt 0:10:36]} 24. Rxd3 {[%emt 0:01:33]} Bxd3 {[%emt 0:00:05]} 25. Qxd3 {[%emt 0:00:04]} Rd7 {[%emt 0:00:21]} 26. Nd5 {[%emt 0:02:05]} Qxd6 {[%emt 0:00:29]} 27. Qb5 {[%emt 0:00:27]} Rb8 {[%emt 0:04:51]} 28. Qxa4 {[%emt 0:07:32]} b5 {[%emt 0:00:06]} 29. Qg4 {[%emt 0:00:05]} Ra7 {[%emt 0:01:15]} 30. a3 {[%emt 0:00:58]} Ra4 {[%emt 0:00:43]} 31. Qe2 {[%emt 0:00:44]} Kf8 {[%emt 0:04:36]} 32. Nc3 {[%emt 0:01:00]} Ra5 {[%emt 0:00:28]} 33. Rd1 {[%emt 0:01:37]} Qe7 {[%emt 0:01:37]} 34. Qc2 {[%emt 0:00:32]} Kg8 {[%emt 0:00:15]} 35. Nd5 {[%emt 0:00:20]} Qa7 {[%emt 0:01:23]} 36. Re1 {[%emt 0:00:15]} Kh8 {[%emt 0:02:59]} 37. Re7 {[%emt 0:00:55]} Qa6 {[%emt 0:00:05]} 38. Qxc5 {[%emt 0:01:10]} b4 {[%emt 0:00:29]} 39. Qe3 {[%emt 0:00:32]} bxa3 {[%emt 0:00:55]} 40. Re8+ {[%emt 0:01:44]} Kh7 {[%emt 0:00:32]} 41. Be4+ {[%emt 0:00:43]} g6 {[%emt 0:00:05]} 42. Rxb8 {[%emt 0:00:28]} a2 {[%emt 0:00:08]} 43. Rh8+ {[%emt 0:00:15]} 1-0

[Event "Chinese Championship-B Men 2024"]
[Site "Liaocheng"]
[Date "2024.04.24"]
[Round "8.11"]
[White "Yu, Chaojie"]
[Black "Xia, Jinnan"]
[Result "1/2-1/2"]
[WhiteElo "2047"]
[BlackElo "1819"]
[PlyCount "62"]
[EventDate "2024.04.24"]
[EventType "swiss"]
[EventCountry "CHN"]
[TimeControl "5400+30"]

1. e4 {[%emt 0:00:37]} c5 {[%emt 0:00:02]} 2. Nf3 {[%emt 0:00:14]} d6 {[%emt 0:00:02]} 3. d4 {[%emt 0:00:14]} cxd4 {[%emt 0:00:03]} 4. Nxd4 {[%emt 0:00:06]} Nf6 {[%emt 0:00:04]} 5. f3 {[%emt 0:00:51]} a6 {[%emt 0:00:14]} 6. c4 {[%emt 0:00:26]} e6 {[%emt 0:00:18]} 7. Nc3 {[%emt 0:00:46]} Be7 {[%emt 0:00:18]} 8. Be3 {[%emt 0:01:08]} Qc7 {[%emt 0:00:23]} 9. Be2 {[%emt 0:02:04]} Nbd7 {[%emt 0:00:26]} 10. O-O {[%emt 0:00:35]} O-O {[%emt 0:00:27]} 11. Rc1 {[%emt 0:05:48]} b6 {[%emt 0:00:22]} 12. Qd2 {[%emt 0:05:10]} Bb7 {[%emt 0:00:26]} 13. Rfd1 {[%emt 0:00:54]} Rac8 {[%emt 0:00:15]} 14. Bf1 {[%emt 0:03:14]} Rfd8 {[%emt 0:02:03]} 15. Qf2 {[%emt 0:06:09]} Qb8 {[%emt 0:01:43]} 16. a4 {[%emt 0:05:40]} Bf8 {[%emt 0:02:37]} 17. Kh1 {[%emt 0:03:14]} Ne5 {[%emt 0:15:40]} 18. Nb3 {[%emt 0:17:37]} Nxc4 {[%emt 0:00:41]} 19. Bxc4 {[%emt 0:03:04]} Rxc4 {[%emt 0:00:07]} 20. Bxb6 {[%emt 0:00:10]} Rd7 {[%emt 0:06:09]} 21. Na5 {[%emt 0:09:03]} Rc8 {[%emt 0:01:54]} 22. Nxb7 {[%emt 0:02:34]} Qxb7 {[%emt 0:00:52]} 23. a5 {[%emt 0:00:57]} d5 {[%emt 0:04:24]} 24. e5 {[%emt 0:00:36]} Ne8 {[%emt 0:00:10]} 25. Ne2 {[%emt 0:06:12]} Nc7 {[%emt 0:07:10]} 26. Qd4 {[%emt 0:17:28]} Nb5 {[%emt 0:05:52]} 27. Qd3 {[%emt 0:00:22]} Rxc1 {[%emt 0:03:42]} 28. Rxc1 {[%emt 0:00:05]} d4 {[%emt 0:01:22]} 29. f4 {[%emt 0:02:50]} g6 {[%emt 0:01:51]} 30. Ng3 {[%emt 0:01:44]} Be7 {[%emt 0:01:44]} 31. Ne4 {[%emt 0:00:25]} Kg7 {[%emt 0:01:36]} 1/2-1/2

[Event "Chinese Championship-B Men 2024"]
[Site "Liaocheng"]
[Date "2024.04.24"]
[Round "8.12"]
[White "Jiang, Bryan Liu"]
[Black "Zhang, Zhi"]
[Result "1/2-1/2"]
[WhiteElo "1800"]
[BlackElo "1987"]
[PlyCount "65"]
[EventDate "2024.04.24"]
[EventType "swiss"]
[EventCountry "CHN"]
[TimeControl "5400+30"]

1. d4 {[%emt 0:00:03]} Nf6 {[%emt 0:00:11]} 2. c4 {[%emt 0:00:05]} e6 {[%emt 0:00:14]} 3. Nf3 {[%emt 0:00:04]} b6 {[%emt 0:00:06]} 4. g3 {[%emt 0:00:08]} Bb7 {[%emt 0:00:14]} 5. Bg2 {[%emt 0:00:03]} Be7 {[%emt 0:00:10]} 6. O-O {[%emt 0:00:32]} O-O {[%emt 0:00:05]} 7. Nc3 {[%emt 0:00:04]} Ne4 {[%emt 0:00:11]} 8. Qc2 {[%emt 0:00:48]} Nxc3 {[%emt 0:00:05]} 9. Qxc3 {[%emt 0:00:04]} d6 {[%emt 0:00:10]} 10. b3 {[%emt 0:02:11]} Nd7 {[%emt 0:00:16]} 11. Bb2 {[%emt 0:00:13]} Be4 {[%emt 0:00:16]} 12. Rad1 {[%emt 0:09:16]} a5 {[%emt 0:01:26]} 13. Ne1 {[%emt 0:04:05]} Bxg2 {[%emt 0:00:08]} 14. Kxg2 {[%emt 0:00:51]} d5 {[%emt 0:06:27]} 15. Nd3 {[%emt 0:04:48]} c6 {[%emt 0:07:32]} 16. cxd5 {[%emt 0:01:23]} cxd5 {[%emt 0:01:22]} 17. Rc1 {[%emt 0:00:09]} Rc8 {[%emt 0:14:39]} 18. Qd2 {[%emt 0:00:57]} Bd6 {[%emt 0:12:53]} 19. Rxc8 {[%emt 0:00:44]} Qxc8 {[%emt 0:00:01]} 20. Rc1 {[%emt 0:00:08]} Qb8 {[%emt 0:00:34]} 21. Qc3 {[%emt 0:01:10]} Rd8 {[%emt 0:00:47]} 22. a4 {[%emt 0:02:51]} Nf8 {[%emt 0:01:53]} 23. Qc6 {[%emt 0:05:24]} Ng6 {[%emt 0:00:29]} 24. Qb5 {[%emt 0:00:07]} Ne7 {[%emt 0:00:10]} 25. b4 {[%emt 0:01:01]} Qa7 {[%emt 0:05:29]} 26. bxa5 {[%emt 0:13:11]} Qxa5 {[%emt 0:04:29]} 27. Qxa5 {[%emt 0:06:48]} bxa5 {[%emt 0:00:01]} 28. Bc3 {[%emt 0:00:27]} Nc6 {[%emt 0:05:27]} 29. Rb1 {[%emt 0:00:51]} Bb4 {[%emt 0:09:12]} 30. Bxb4 {[%emt 0:04:47]} Nxb4 {[%emt 0:05:12]} 31. Nxb4 {[%emt 0:01:08]} Rb8 {[%emt 0:00:15]} 32. Rc1 {[%emt 0:00:14]} axb4 {[%emt 0:00:07]} 33. a5 {[%emt 0:00:09]} 1/2-1/2

[Event "Chinese Championship-B Men 2024"]
[Site "Liaocheng"]
[Date "2024.04.24"]
[Round "8.13"]
[White "Xie, Jianjun"]
[Black "Chen, Muxi"]
[Result "1-0"]
[WhiteElo "2384"]
[BlackElo "1828"]
[PlyCount "63"]
[EventDate "2024.04.24"]
[EventType "swiss"]
[EventCountry "CHN"]
[TimeControl "5400+30"]

1. d4 {[%emt 0:01:44]} d5 {[%emt 0:00:32]} 2. c4 {[%emt 0:00:14]} c6 {[%emt 0:00:23]} 3. Nc3 {[%emt 0:00:34]} Nf6 {[%emt 0:00:48]} 4. cxd5 {[%emt 0:02:23]} cxd5 {[%emt 0:00:17]} 5. Nf3 {[%emt 0:00:03]} Nc6 {[%emt 0:01:05]} 6. Bf4 {[%emt 0:00:02]} Bf5 {[%emt 0:01:32]} 7. e3 {[%emt 0:00:01]} e6 {[%emt 0:03:02]} 8. Bb5 {[%emt 0:00:05]} a6 {[%emt 0:08:53]} 9. Bxc6+ {[%emt 0:00:31]} bxc6 {[%emt 0:00:07]} 10. Qa4 {[%emt 0:00:10]} Qb6 {[%emt 0:01:25]} 11. Ne5 {[%emt 0:13:13]} Rc8 {[%emt 0:00:33]} 12. O-O {[%emt 0:05:06]} Be7 {[%emt 0:07:49]} 13. Rfc1 {[%emt 0:01:06]} O-O {[%emt 0:08:17]} 14. Qb3 {[%emt 0:00:10]} Qxb3 {[%emt 0:07:18]} 15. axb3 {[%emt 0:00:01]} Nh5 {[%emt 0:07:17]} 16. Rxa6 {[%emt 0:13:05]} Nxf4 {[%emt 0:00:31]} 17. exf4 {[%emt 0:00:01]} c5 {[%emt 0:02:29]} 18. Nc6 {[%emt 0:02:26]} Bd6 {[%emt 0:10:24]} 19. dxc5 {[%emt 0:00:25]} Bxc5 {[%emt 0:01:07]} 20. Nxd5 {[%emt 0:03:49]} exd5 {[%emt 0:03:50]} 21. Rxc5 {[%emt 0:00:33]} Rfe8 {[%emt 0:00:24]} 22. h3 {[%emt 0:00:37]} Bd7 {[%emt 0:03:45]} 23. b4 {[%emt 0:00:09]} Bxc6 {[%emt 0:01:31]} 24. Raxc6 {[%emt 0:00:33]} Rb8 {[%emt 0:00:28]} 25. b5 {[%emt 0:00:18]} d4 {[%emt 0:01:16]} 26. Rd6 {[%emt 0:01:42]} Re1+ {[%emt 0:00:44]} 27. Kh2 {[%emt 0:00:04]} Rb1 {[%emt 0:01:05]} 28. Rc2 {[%emt 0:02:46]} g5 {[%emt 0:02:10]} 29. fxg5 {[%emt 0:05:44]} Rxb5 {[%emt 0:00:41]} 30. f4 {[%emt 0:00:10]} Rb4 {[%emt 0:08:50]} 31. f5 {[%emt 0:05:54]} Kg7 {[%emt 0:02:46]} 32. Rc8 {[%emt 0:00:48]} 1-0

[Event "Chinese Championship-B Men 2024"]
[Site "Liaocheng"]
[Date "2024.04.24"]
[Round "8.14"]
[White "Cheng, Zihan"]
[Black "Hou, Yifan b"]
[Result "1-0"]
[WhiteElo "1819"]
[BlackElo "2161"]
[PlyCount "75"]
[EventDate "2024.04.24"]
[EventType "swiss"]
[EventCountry "CHN"]
[TimeControl "5400+30"]

1. e4 {[%emt 0:00:02]} c5 {[%emt 0:01:47]} 2. Nf3 {[%emt 0:00:05]} Nc6 {[%emt 0:00:15]} 3. d4 {[%emt 0:00:05]} cxd4 {[%emt 0:00:07]} 4. Nxd4 {[%emt 0:00:03]} Nf6 {[%emt 0:00:21]} 5. Nc3 {[%emt 0:00:04]} e5 {[%emt 0:00:12]} 6. Ndb5 {[%emt 0:00:02]} d6 {[%emt 0:00:18]} 7. Nd5 {[%emt 0:00:33]} Nxd5 {[%emt 0:00:07]} 8. exd5 {[%emt 0:00:04]} Nb8 {[%emt 0:00:05]} 9. a4 {[%emt 0:00:10]} Be7 {[%emt 0:00:47]} 10. Be2 {[%emt 0:00:14]} O-O {[%emt 0:01:00]} 11. O-O {[%emt 0:00:05]} a6 {[%emt 0:02:29]} 12. Na3 {[%emt 0:00:05]} Nd7 {[%emt 0:00:14]} 13. Nc4 {[%emt 0:01:22]} a5 {[%emt 0:05:19]} 14. f4 {[%emt 0:00:10]} exf4 {[%emt 0:02:49]} 15. Bxf4 {[%emt 0:02:38]} Nb6 {[%emt 0:01:06]} 16. Ne3 {[%emt 0:09:11]} Re8 {[%emt 0:05:48]} 17. Bd3 {[%emt 0:02:54]} Bf6 {[%emt 0:02:33]} 18. Qf3 {[%emt 0:18:35]} Nd7 {[%emt 0:07:34]} 19. c3 {[%emt 0:08:39]} Ne5 {[%emt 0:11:02]} 20. Bxe5 Rxe5 {[%emt 0:00:29]} 21. Kh1 {[%emt 0:02:16]} Bd7 {[%emt 0:07:18]} 22. Nc4 {[%emt 0:04:26]} Qe7 {[%emt 0:00:20]} 23. Nxe5 {[%emt 0:01:04]} Bxe5 {[%emt 0:00:20]} 24. Bf5 {[%emt 0:01:55]} Bxf5 {[%emt 0:01:50]} 25. Qxf5 {[%emt 0:00:03]} g6 {[%emt 0:00:09]} 26. Qg4 {[%emt 0:02:03]} Rf8 {[%emt 0:00:47]} 27. Rae1 {[%emt 0:05:49]} Kg7 {[%emt 0:02:07]} 28. Rf3 {[%emt 0:04:18]} h5 {[%emt 0:01:03]} 29. Qf4 {[%emt 0:02:48]} Re8 {[%emt 0:01:45]} 30. Qc4 {[%emt 0:04:27]} Qg5 {[%emt 0:02:01]} 31. Ref1 {[%emt 0:03:27]} Re7 {[%emt 0:00:25]} 32. b4 {[%emt 0:02:20]} b6 {[%emt 0:01:40]} 33. Qb5 {[%emt 0:04:21]} Qh4 {[%emt 0:04:28]} 34. h3 {[%emt 0:00:17]} g5 {[%emt 0:08:50]} 35. Qxb6 {[%emt 0:03:47]} axb4 {[%emt 0:01:10]} 36. Qd8 {[%emt 0:05:04]} Ra7 {[%emt 0:02:07]} 37. cxb4 {[%emt 0:00:26]} f6 {[%emt 0:05:02]} 38. Rxf6 {[%emt 0:01:03]} 1-0

[Event "Chinese Championship-B Men 2024"]
[Site "Liaocheng"]
[Date "2024.04.24"]
[Round "8.15"]
[White "Chan, Wang Ip Boris"]
[Black "Jin, Ruijun"]
[Result "0-1"]
[WhiteElo "2011"]
[BlackElo "1819"]
[PlyCount "86"]
[EventDate "2024.04.24"]
[EventType "swiss"]
[EventCountry "CHN"]
[TimeControl "5400+30"]

1. e4 {[%emt 0:00:02]} c5 {[%emt 0:03:04]} 2. Nf3 {[%emt 0:00:24]} d6 {[%emt 0:00:18]} 3. d4 {[%emt 0:00:11]} cxd4 {[%emt 0:00:12]} 4. Nxd4 {[%emt 0:00:04]} Nf6 {[%emt 0:00:05]} 5. Nc3 {[%emt 0:00:02]} a6 {[%emt 0:00:13]} 6. Bg5 {[%emt 0:00:19]} e6 {[%emt 0:00:12]} 7. f4 {[%emt 0:00:12]} Nbd7 {[%emt 0:00:24]} 8. Qe2 {[%emt 0:03:33]} Qc7 {[%emt 0:00:10]} 9. O-O-O {[%emt 0:00:14]} b5 {[%emt 0:00:16]} 10. a3 {[%emt 0:00:14]} Be7 {[%emt 0:00:19]} 11. g4 {[%emt 0:00:27]} h6 {[%emt 0:00:14]} 12. Bxf6 {[%emt 1:30:48]} Nxf6 {[%emt 0:09:01]} 13. h4 {[%emt 0:00:00]} Rb8 {[%emt 0:13:15]} 14. Bg2 {[%emt 0:00:00]} Nd7 {[%emt 0:09:54]} 15. g5 {[%emt 0:01:30]} b4 {[%emt 0:11:06]} 16. axb4 {[%emt 0:00:00]} Rxb4 {[%emt 0:00:13]} 17. g6 {[%emt 0:00:00]} Bf6 {[%emt 0:10:09]} 18. gxf7+ Kxf7 {[%emt 0:00:06]} 19. e5 {[%emt 0:00:00]} dxe5 {[%emt 0:04:08]} 20. Nd5 {[%emt 0:00:00]} exd5 {[%emt 0:01:52]} 21. Bxd5+ {[%emt 0:00:00]} Ke7 {[%emt 0:03:53]} 22. Nc6+ {[%emt 0:00:00]} Kf8 {[%emt 0:00:10]} 23. Nxb4 {[%emt 0:00:00]} exf4 {[%emt 0:00:32]} 24. Rhe1 {[%emt 0:00:00]} Ne5 {[%emt 0:01:53]} 25. Nc6 {[%emt 0:00:00]} Bg4 {[%emt 0:08:20]} 26. Nxe5 {[%emt 0:00:00]} Bxe2 {[%emt 0:00:06]} 27. Ng6+ {[%emt 0:00:00]} Ke8 {[%emt 0:00:05]} 28. Rxe2+ {[%emt 0:00:00]} Be7 {[%emt 0:00:54]} 29. Rxe7+ {[%emt 0:00:00]} Qxe7 {[%emt 0:00:11]} 30. Nxe7 {[%emt 0:00:00]} Kxe7 {[%emt 0:00:05]} 31. c4 {[%emt 0:00:00]} g5 {[%emt 0:00:06]} 32. hxg5 {[%emt 0:00:00]} hxg5 {[%emt 0:00:07]} 33. Rg1 {[%emt 0:00:00]} Kf6 {[%emt 0:00:17]} 34. Kd2 {[%emt 0:00:00]} Kf5 {[%emt 0:01:00]} 35. Re1 {[%emt 0:02:19]} g4 {[%emt 0:00:30]} 36. Be6+ {[%emt 0:01:49]} Kg5 {[%emt 0:00:07]} 37. c5 {[%emt 0:00:32]} f3 {[%emt 0:01:16]} 38. c6 {[%emt 0:05:25]} g3 {[%emt 0:03:04]} 39. c7 {[%emt 0:01:22]} f2 {[%emt 0:00:23]} 40. c8=Q {[%emt 0:00:30]} Rxc8 {[%emt 0:00:16]} 41. Bxc8 {[%emt 0:00:29]} g2 {[%emt 0:00:25]} 42. Re5+ {[%emt 0:00:18]} Kg6 {[%emt 0:01:38]} 43. Bxa6 {[%emt 0:00:44]} f1=Q {[%emt 0:00:46]} 0-1